bitfinex/quotes_ETHUSD_20210401
["timestamp","ask_amount","ask_price","bid_price","bid_amount"]
[1617244713325,18.91174724,1930.9,1930.8,15.7946842]
[1617244715166,18.91174724,1930.9,1930.8,28.79168627]
[1617244715361,22.46174724,1930.9,1930.8,28.79168627]
[1617244715563,22.46174724,1930.9,1930.8,36.79168627]
[1617244715959,22.46174724,1930.9,1930.8,28.79168627]
[1617244716169,20.52104724,1930.9,1930.8,28.79168627]
[1617244716770,19.52104724,1930.9,1930.8,28.79168627]
[1617244716971,19.52104724,1930.9,1930.8,27.59168627]
[1617244718169,19.52104724,1930.9,1930.8,27.56531727]
[1617244718816,19.52104724,1930.9,1930.8,28.76531727]
[1617244719217,17.68244724,1930.9,1930.8,28.76531727]
[1617244719420,17.68244724,1930.9,1930.8,31.0808152]
[1617244719618,17.68244724,1930.9,1930.8,33.0044152]
[1617244719818,17.68244724,1930.9,1930.8,38.96161727]
[1617244720422,17.68244724,1930.9,1930.8,38.56161727]
[1617244720619,21.23244724,1930.9,1930.8,38.94161727]
[1617244720819,22.25591309,1930.9,1930.8,38.94161727]
[1617244721219,21.23244724,1930.9,1930.8,38.94161727]
[1617244721429,3.55,1931.3,1931.0,4.31676298]
[1617244721628,3.55,1931.3,1931.2,18.59842254]
[1617244721829,3.55,1931.3,1931.2,31.37552254]
[1617244722027,3.55,1931.3,1931.2,44.93272461]
[1617244722028,3.098,1931.3,1931.2,44.93272461]
[1617244722227,1.2609,1931.3,1931.2,45.93092461]
[1617244722427,1.2609,1931.3,1931.2,54.37092461]
[1617244723629,1.2609,1931.3,1931.2,51.97092461]
[1617244723829,1.2609,1931.3,1931.2,37.96272461]
[1617244724650,1.2609,1931.3,1931.2,31.83870505]
[1617244724852,18.1609,1931.3,1931.2,24.88474]
[1617244725052,18.1609,1931.3,1931.1,10.34352]
[1617244725251,18.1609,1931.3,1930.8,10.932805]
[1617244725252,12.31300812,1931.2,1930.8,10.932805]
[1617244725451,0.077,1931.1,1930.8,10.932805]
[1617244725852,0.077,1931.1,1931.0,7.76171]
[1617244725853,3.627,1931.1,1931.0,7.76171]
[1617244726053,3.55,1931.1,1931.0,8.04171]
[1617244726452,3.55,1931.1,1931.0,16.7762343]
[1617244726880,3.55,1931.1,1931.0,22.8262343]
[1617244727078,1.9276536,1931.1,1931.0,26.3062343]
[1617244727280,1.0,1931.4,1931.1,19.257]
[1617244727479,1.0,1931.4,1931.3,26.0547867]
[1617244727679,1.0,1931.4,1931.3,34.3557867]
[1617244727880,39.05,1931.8,1931.6,0.399]
[1617244728081,38.74733039,1931.8,1931.7,13.45638]
[1617244728282,38.74733039,1931.8,1931.7,14.65638]
[1617244728283,36.90533039,1931.8,1931.7,14.65638]
[1617244728479,36.90533039,1931.8,1931.7,22.65638]
[1617244728680,36.90533039,1931.8,1931.7,48.71358207]
[1617244728681,22.69305239,1931.8,1931.7,48.71358207]
[1617244728879,1.0,1931.9,1931.7,40.95820207]
[1617244729079,1.2422508,1932.0,1931.8,51.21236907]
[1617244729300,1.2422508,1932.0,1931.9,28.61720207]
[1617244729501,7.1,1932.2,1932.0,14.15]
[1617244729701,7.1,1932.2,1932.1,21.40720207]
[1617244729902,6.1,1932.2,1932.1,25.62436369]
[1617244730102,6.1,1932.2,1932.1,35.10436369]
[1617244730303,6.1,1932.2,1932.1,41.50806369]
[1617244730304,6.0,1932.2,1932.1,41.50806369]
[1617244731101,9.55,1932.2,1932.1,49.26226369]
[1617244731302,6.0761536,1932.2,1932.1,49.26226369]
[1617244731504,1.0,1932.4,1932.2,44.64778764]
[1617244731705,1.0,1932.4,1932.3,37.91202587]
[1617244731947,1.0,1932.4,1932.3,48.77202587]
[1617244732147,10.65,1933.1,1932.4,17.84406894]
[1617244732347,15.34,1932.9,1932.8,7.75239]
[1617244732549,15.2,1932.9,1932.8,11.75239]
[1617244732746,15.2,1932.9,1932.8,19.75239]
[1617244732947,15.2,1932.9,1932.8,19.47239]
[1617244733148,15.2,1932.9,1932.8,11.72]
[1617244733746,15.2,1932.9,1932.8,3.72]
[1617244734347,13.3594,1932.9,1932.8,3.72]
[1617244734950,12.3594,1932.9,1932.8,3.72]
[1617244736156,14.45168222,1932.9,1932.8,3.72]
[1617244736352,15.9094,1932.9,1932.3,2.0]
[1617244736551,15.9094,1932.9,1932.8,0.12202983]
[1617244737175,14.0722,1932.9,1932.8,0.12202983]
[1617244739828,13.0722,1932.9,1932.8,11.98362983]
[1617244740027,13.0722,1932.9,1932.8,18.03362983]
[1617244740227,11.2296,1932.9,1932.8,18.03362983]
[1617244740629,11.2296,1932.9,1932.8,10.03362983]
[1617244740827,11.2296,1932.9,1932.8,10.31362983]
[1617244741028,11.2296,1932.9,1932.8,18.31362983]
[1617244741433,14.7796,1932.9,1932.8,28.65041983]
[1617244741828,14.7796,1932.9,1932.8,28.37041983]
[1617244742427,14.7796,1932.9,1932.8,27.98041983]
[1617244742828,14.7796,1932.9,1932.8,17.64362983]
[1617244743232,12.9375,1932.9,1932.8,17.64362983]
[1617244743433,12.9375,1932.9,1932.8,3.18202983]
[1617244743633,31.5875,1932.9,1932.8,0.12202983]
[1617244743831,44.73279477,1932.9,1932.8,0.12202983]
[1617244744630,45.93279477,1932.9,1932.8,0.12202983]
[1617244744830,43.73279477,1932.9,1932.8,0.12202983]
[1617244745681,26.28279477,1932.9,1932.8,0.12202983]
[1617244745880,16.73109477,1932.9,1932.8,0.12202983]
[1617244746281,12.9375,1932.9,1932.8,0.12202983]
[1617244746687,16.4875,1932.9,1932.8,0.12202983]
[1617244746883,18.44179477,1932.9,1932.8,0.12202983]
[1617244747082,16.4875,1932.9,1932.8,0.12202983]
[1617244749286,14.6443,1932.9,1932.8,0.12202983]
[1617244749884,13.6443,1932.9,1932.8,0.12202983]
[1617244751907,17.1943,1932.9,1932.8,0.12202983]
[1617244752304,15.3518,1932.9,1932.8,0.12202983]
[1617244752503,22.2518,1932.9,1932.8,0.12202983]
[1617244752927,22.6318,1932.9,1932.8,0.12202983]
[1617244753128,24.58609477,1932.9,1932.8,0.12202983]
[1617244753330,24.58609477,1932.9,1932.8,9.83e-06]
[1617244753727,24.58609477,1932.9,1932.3,2.0]
[1617244753728,2.0691026,1932.6,1932.3,2.0]
[1617244753926,8.95914,1932.5,1932.3,2.0]
[1617244754126,14.05925585,1932.5,1932.3,2.0]
[1617244754926,13.05925585,1932.5,1932.4,0.16227908]
[1617244755326,11.22175585,1932.5,1932.4,0.16227908]
[1617244755553,19.82593477,1932.5,1932.4,0.16227908]
[1617244757160,29.11554685,1932.5,1932.4,0.16227908]
[1617244757355,23.76593477,1932.5,1932.4,0.16227908]
[1617244757756,29.50554685,1932.5,1932.4,0.16227908]
[1617244757956,23.76593477,1932.5,1932.4,0.16227908]
[1617244758378,29.50535518,1932.5,1932.4,0.16227908]
[1617244759378,23.76593477,1932.5,1932.4,0.16227908]
[1617244759781,29.50550238,1932.5,1932.4,0.16227908]
[1617244759980,28.50550238,1932.5,1932.4,0.16227908]
[1617244760197,22.76593477,1932.5,1932.4,0.16227908]
[1617244760397,22.37593477,1932.5,1932.4,0.16227908]
[1617244760799,22.76593477,1932.5,1932.4,0.16227908]
[1617244761404,35.11593477,1932.5,1932.4,0.16227908]
[1617244761602,40.85623058,1932.5,1932.4,0.16227908]
[1617244762402,44.40623058,1932.5,1932.4,0.16227908]
[1617244762801,32.05623058,1932.5,1932.4,0.16227908]
[1617244763428,40.80623058,1932.5,1932.4,0.16227908]
[1617244764226,32.05623058,1932.5,1932.4,0.16227908]
[1617244764426,38.20623058,1932.5,1932.4,0.16227908]
[1617244765029,31.05623058,1932.5,1932.4,0.16227908]
[1617244765627,25.31593477,1932.5,1932.4,0.16227908]
[1617244766056,23.72593477,1932.5,1932.4,0.16227908]
[1617244766454,24.92593477,1932.5,1932.4,0.16227908]
[1617244767454,28.47593477,1932.5,1932.4,0.16227908]
[1617244768680,15.52593477,1932.5,1932.4,0.16227908]
[1617244769079,11.03,1932.5,1932.4,0.16227908]
[1617244769478,10.65,1932.5,1932.4,0.16227908]
[1617244769879,10.85,1932.5,1932.4,0.16227908]
[1617244770081,13.96036238,1932.5,1932.4,0.16227908]
[1617244770283,36.81036238,1932.5,1932.4,0.16227908]
[1617244770880,36.81036238,1932.5,1932.4,9.08e-06]
[1617244771081,36.81036238,1932.5,1931.1,2.0]
[1617244771082,0.16227,1932.4,1931.1,2.0]
[1617244771317,3.11036238,1931.7,1931.1,2.0]
[1617244771517,0.077,1931.6,1931.2,0.1986764]
[1617244772117,0.457,1931.6,1931.2,0.1986764]
[1617244772318,0.39,1931.5,1931.2,0.1986764]
[1617244772516,0.457,1931.6,1931.2,0.1986764]
[1617244772715,0.457,1931.6,1931.1,2.0]
[1617244772716,4.75,1931.5,1931.1,2.0]
[1617244773116,10.3517,1931.4,1931.1,2.0]
[1617244773316,10.4917,1931.4,1931.1,2.0]
[1617244773515,8.6473,1931.4,1931.2,0.4]
[1617244773714,14.756,1931.4,1931.2,0.4]
[1617244774131,14.756,1931.4,1931.1,2.0]
[1617244774929,13.756,1931.4,1931.1,2.0]
[1617244775130,15.8265021,1931.4,1931.1,2.0]
[1617244776131,7.76439,1931.3,1931.1,2.0]
[1617244777574,8.30445351,1931.3,1931.1,2.0]
[1617244777773,4.00445351,1931.3,1931.1,2.0]
[1617244777978,35.33869438,1931.2,1931.1,2.0]
[1617244778178,43.86379438,1931.2,1931.1,2.0]
[1617244778376,43.86379438,1931.2,1930.6,1.0]
[1617244778574,0.14,1931.0,1930.6,1.0]
[1617244778773,5.15,1931.0,1930.6,1.0]
[1617244778974,4.47869438,1931.0,1930.6,1.0]
[1617244779383,6.54957448,1931.0,1930.6,1.0]
[1617244779582,7.25317448,1931.0,1930.6,1.0]
[1617244779782,17.76581,1930.9,1930.6,1.0]
[1617244779984,4.33869438,1930.8,1930.6,1.0]
[1617244780184,12.25799438,1930.8,1930.6,1.0]
[1617244780383,9.1193,1930.8,1930.6,1.0]
[1617244781810,16.8852,1930.8,1930.6,1.0]
[1617244782207,24.98946096,1930.8,1930.6,1.0]
[1617244782610,24.94846096,1930.8,1930.6,1.0]
[1617244783210,28.49846096,1930.8,1930.6,1.0]
[1617244783611,16.28869438,1930.7,1930.6,1.0]
[1617244784211,13.15,1930.7,1930.6,1.0]
[1617244785632,11.3107,1930.7,1930.6,1.0]
[1617244785832,20.57916096,1930.8,1930.6,1.0]
[1617244785833,19.42016096,1930.8,1930.6,1.0]
[1617244786036,19.42016096,1930.8,1930.7,0.38]
[1617244786037,11.65426096,1930.8,1930.7,0.38]
[1617244786234,3.55,1930.8,1930.7,0.38]
[1617244786435,3.55,1930.8,1930.7,0.66]
[1617244786634,3.55,1930.8,1930.7,0.38]
[1617244787264,3.55,1930.8,1930.6,1.0]
[1617244788463,7.1,1930.8,1930.6,1.0]
[1617244788667,13.02557,1930.8,1930.6,1.0]
[1617244790713,14.22557,1930.8,1930.6,1.0]
[1617244790908,13.02557,1930.8,1930.6,1.0]
[1617244791110,14.22557,1930.8,1930.6,1.0]
[1617244791711,16.65,1930.7,1930.6,1.0]
[1617244792109,11.0,1930.7,1930.6,1.0]
[1617244792528,11.0,1930.7,1930.6,1.4]
[1617244793129,11.0,1930.7,1930.6,1.0]
[1617244793530,11.0,1930.7,1930.6,1.41]
[1617244793731,14.55,1930.7,1930.6,1.41]
[1617244794330,14.55,1930.7,1930.6,1.0]
[1617244794730,12.7051,1930.7,1930.6,1.0]
[1617244796334,14.776184,1930.7,1930.6,1.0]
[1617244797560,26.776184,1930.7,1930.6,0.08872057]
[1617244797756,12.939084,1930.7,1930.6,0.08872057]
[1617244798358,12.7051,1930.7,1930.6,0.08872057]
[1617244798957,16.2551,1930.7,1930.6,0.08872057]
[1617244802590,24.02049,1930.7,1930.6,0.08872057]
[1617244803809,22.18359,1930.7,1930.6,0.08872057]
[1617244804414,25.73359,1930.7,1930.6,0.08872057]
[1617244806849,23.88239,1930.7,1930.6,0.49872057]
[1617244808080,23.88239,1930.7,1930.6,0.08872057]
[1617244809482,16.117,1930.7,1930.6,0.49872057]
[1617244809684,19.667,1930.7,1930.6,0.49872057]
[1617244809881,17.7716,1930.7,1930.6,0.49872057]
[1617244810483,25.53714,1930.7,1930.6,0.49872057]
[1617244811483,25.53714,1930.7,1930.6,0.08872057]
[1617244812285,25.53714,1930.7,1930.6,0.48872057]
[1617244812883,23.69494,1930.7,1930.6,0.48872057]
[1617244814307,23.69494,1930.7,1930.6,0.08872057]
[1617244814911,27.24494,1930.7,1930.6,0.08872057]
[1617244815938,26.59480705,1930.7,1930.6,0.47872057]
[1617244816138,25.40534,1930.7,1930.6,1.95872057]
[1617244817541,25.40534,1930.7,1930.6,1.67872057]
[1617244818338,25.40534,1930.7,1930.6,0.47872057]
[1617244818965,23.56674,1930.7,1930.6,0.47872057]
[1617244819564,23.56674,1930.7,1930.6,0.08872057]
[1617244820169,27.11674,1930.7,1930.6,0.08872057]
[1617244820766,27.11674,1930.7,1930.0,0.39]
[1617244820767,32.15,1930.6,1930.0,0.39]
[1617244820965,32.15,1930.6,1929.8,2.0]
[1617244820966,40.6965,1930.6,1929.8,2.0]
[1617244821186,45.7065,1930.6,1929.8,2.15055273]
[1617244821392,27.61853,1930.2,1929.8,2.15055273]
[1617244821589,37.33083,1930.2,1929.8,2.15055273]
[1617244821988,37.33083,1930.2,1929.8,2.0]
[1617244821989,35.49323,1930.2,1929.8,2.0]
[1617244822187,40.50323,1930.2,1929.8,2.0]
[1617244822988,20.65323,1930.2,1929.8,2.0]
[1617244824632,21.04323,1930.2,1929.8,2.0]
[1617244824832,29.79323,1930.2,1929.8,2.0]
[1617244825034,28.15,1930.1,1929.8,2.0]
[1617244825232,30.29,1929.9,1929.8,2.0]
[1617244825437,30.29,1929.9,1929.6,1.0]
[1617244825636,23.02042,1929.7,1929.6,1.0]
[1617244826037,7.77042,1929.7,1929.6,1.0]
[1617244826439,10.92677396,1929.7,1929.6,1.0]
[1617244826639,31.78677396,1929.7,1929.6,1.0]
[1617244827039,21.0,1929.6,1929.1,1.0]
[1617244827239,21.14,1929.6,1929.1,1.68]
[1617244827440,4.74181,1929.5,1929.1,1.28]
[1617244827839,4.9742988,1929.5,1929.1,1.28]
[1617244828043,8.8604088,1929.5,1929.1,1.0]
[1617244828240,4.9742988,1929.5,1929.1,1.0]
[1617244828441,5.18184,1929.4,1929.2,0.4]
[1617244828640,12.36084,1929.4,1929.2,0.4]
[1617244828842,7.77221,1929.3,1929.1,1.4]
[1617244829067,7.77221,1929.3,1929.1,1.0]
[1617244830470,15.24351,1929.3,1929.1,1.0]
[1617244830673,18.79351,1929.3,1929.1,1.0]
[1617244830870,16.95491,1929.3,1929.1,1.0]
[1617244832487,7.2,1929.2,1929.1,1.0]
[1617244832687,13.7,1929.2,1929.1,1.0]
[1617244832888,7.2,1929.2,1929.1,1.0]
[1617244833291,17.56401,1929.2,1929.1,1.0]
[1617244833887,15.72051,1929.2,1929.1,1.0]
[1617244835945,13.91401,1929.2,1929.1,1.0]
[1617244836942,12.07601,1929.2,1929.1,1.0]
[1617244840368,15.23708164,1929.2,1929.1,1.0]
[1617244841171,18.78708164,1929.2,1929.1,1.0]
[1617244842396,15.62601,1929.2,1929.1,1.0]
[1617244842995,16.16661783,1929.2,1929.1,1.0]
[1617244843996,31.16661783,1929.2,1929.1,1.0]
[1617244844196,30.16661783,1929.2,1929.1,1.0]
[1617244845217,30.16661783,1929.2,1929.1,1.39]
[1617244845218,22.64060783,1929.2,1929.1,1.39]
[1617244845817,22.1,1929.2,1929.1,1.39]
[1617244846019,20.2426,1929.2,1929.1,1.39]
[1617244846221,20.2426,1929.2,1929.1,1.0]
[1617244846422,23.7926,1929.2,1929.1,1.0]
[1617244846620,23.7926,1929.2,1928.7,0.13889667]
[1617244846819,3.08975846,1929.1,1928.3,2.47778873]
[1617244847019,12.13525846,1929.1,1928.5,1.48]
[1617244847218,9.1225,1929.1,1928.5,1.88]
[1617244847449,9.1225,1929.1,1928.3,2.07778873]
[1617244847450,7.77419,1928.9,1928.3,2.07778873]
[1617244847649,15.04325002,1928.9,1928.3,2.07778873]
[1617244848048,15.04325002,1928.9,1928.3,2.46778873]
[1617244848449,12.92419,1928.9,1928.3,2.46778873]
[1617244848648,16.29,1928.7,1928.3,2.07778873]
[1617244848849,25.05412,1928.6,1928.3,2.07778873]
[1617244849052,24.65112,1928.6,1928.3,2.07778873]
[1617244850275,5.9620904,1928.5,1928.3,2.07778873]
[1617244851279,13.7387304,1928.5,1928.3,2.07778873]
[1617244851681,13.7387304,1928.5,1928.1,1.0]
[1617244851682,19.25,1928.2,1928.1,1.0]
[1617244851878,26.75,1928.2,1928.1,1.0]
[1617244852076,62.8932,1928.2,1928.1,1.0]
[1617244852275,62.8932,1928.2,1928.0,0.07010227]
[1617244852276,31.6,1928.1,1928.0,0.07010227]
[1617244852478,31.6,1928.1,1926.9,11.70107851]
[1617244852479,7.77905,1927.8,1926.9,11.70107851]
[1617244852719,21.46,1927.7,1926.9,11.70107851]
[1617244853118,21.46,1927.7,1926.9,12.90107851]
[1617244853521,5.01,1927.7,1926.9,12.90107851]
[1617244853921,8.51224936,1927.7,1926.9,12.90107851]
[1617244854323,8.51224936,1927.7,1926.9,11.70107851]
[1617244854521,19.66224936,1927.7,1926.9,11.70107851]
[1617244854721,19.66224936,1927.7,1926.9,12.09107851]
[1617244854920,8.51224936,1927.7,1926.9,12.09107851]
[1617244855122,6.29024936,1927.7,1927.6,1.11652879]
[1617244855322,16.39024936,1927.7,1927.6,1.11652879]
[1617244855722,16.77024936,1927.7,1927.6,1.11652879]
[1617244855922,33.72024936,1927.7,1927.6,1.0]
[1617244856723,3.168,1927.7,1927.6,1.0]
[1617244856927,7.098,1927.7,1927.6,0.9]
[1617244857124,6.098,1927.7,1927.6,0.9]
[1617244857325,15.168,1927.7,1927.6,0.9]
[1617244857726,13.0,1927.7,1927.6,0.9]
[1617244858145,14.28153988,1927.7,1927.6,0.9]
[1617244858948,14.28153988,1927.7,1927.1,1.0]
[1617244858949,3.11562016,1927.5,1927.1,1.0]
[1617244859148,0.4,1927.3,1927.1,1.0]
[1617244859349,8.335,1927.4,1927.1,1.0]
[1617244859552,8.715,1927.4,1927.1,1.0]
[1617244859747,8.335,1927.4,1927.1,1.0]
[1617244859952,7.78125,1927.2,1927.1,1.0]
[1617244861002,7.78125,1927.2,1927.1,1.4]
[1617244861204,5.94425,1927.2,1927.1,1.4]
[1617244861403,5.94425,1927.2,1927.1,1.0]
[1617244862210,8.49425,1927.2,1927.1,2.88]
[1617244862404,8.49425,1927.2,1927.1,1.68]
[1617244862604,8.49425,1927.2,1927.1,2.88]
[1617244862804,3.55,1927.2,1927.1,2.88]
[1617244863004,3.55,1927.2,1927.1,1.68]
[1617244863806,3.55,1927.2,1927.1,2.88]
[1617244864207,1.712,1927.2,1927.1,2.88]
[1617244865605,1.712,1927.2,1927.1,1.28]
[1617244865848,1.712,1927.2,1927.1,1.0]
[1617244867250,6.64321,1927.3,1927.1,1.41]
[1617244867453,3.55,1927.2,1927.1,1.41]
[1617244867848,3.55,1927.2,1927.1,2.61]
[1617244868249,3.55,1927.2,1927.1,7.9]
[1617244868468,3.55,1927.2,1927.1,1.69]
[1617244869470,3.55,1927.2,1927.1,1.41]
[1617244869673,3.55,1927.2,1927.1,2.61]
[1617244869869,3.55,1927.2,1927.1,1.41]
[1617244870268,1.7097,1927.2,1927.1,1.41]
[1617244871477,1.7097,1927.2,1927.1,2.61]
[1617244871877,1.7097,1927.2,1927.0,1.2]
[1617244872276,0.7097,1927.2,1926.9,5.4]
[1617244872476,8.48972,1927.2,1926.9,5.778]
[1617244872679,12.03972,1927.2,1926.9,0.768]
[1617244872877,11.98972,1927.2,1926.9,0.768]
[1617244873078,11.98972,1927.2,1926.9,1.968]
[1617244873279,10.15082,1927.2,1927.1,0.4]
[1617244875505,10.15082,1927.2,1926.9,1.2]
[1617244875704,10.15082,1927.2,1927.0,0.39]
[1617244876319,8.30692,1927.2,1927.0,0.39]
[1617244877121,7.30692,1927.2,1927.0,0.39]
[1617244877523,7.30692,1927.2,1927.1,0.38]
[1617244877722,10.85692,1927.2,1927.1,0.38]
[1617244878324,10.85692,1927.2,1926.9,4.2]
[1617244878523,10.85692,1927.2,1927.0,0.41]
[1617244879251,9.01442,1927.2,1927.0,0.41]
[1617244880480,9.01442,1927.2,1926.9,0.308]
[1617244880677,9.01442,1927.2,1926.9,0.708]
[1617244880877,9.01442,1927.2,1926.9,1.908]
[1617244881076,9.01442,1927.2,1927.0,0.41]
[1617244881476,2.724087,1927.1,1927.0,0.41]
[1617244881882,10.504187,1927.1,1927.0,0.41]
[1617244882279,7.654087,1927.1,1927.0,0.41]
[1617244882880,11.204087,1927.1,1927.0,0.41]
[1617244884318,18.249887,1927.1,1926.9,0.28]
[1617244884923,18.249887,1927.1,1926.6,1.0]
[1617244884924,21.01007942,1927.0,1926.6,1.0]
[1617244885120,21.15007942,1927.0,1926.6,1.0]
[1617244885519,9.15,1926.7,1926.6,1.0]
[1617244885721,16.7889,1926.7,1926.6,1.0]
[1617244885919,24.57211,1926.7,1926.6,1.0]
[1617244886120,15.42211,1926.7,1926.6,1.0]
[1617244887127,14.82511,1926.7,1926.6,1.0]
[1617244888128,18.37511,1926.7,1926.6,1.0]
[1617244888331,16.53171,1926.7,1926.6,1.0]
[1617244888930,16.93171,1926.7,1926.6,1.0]
[1617244890146,16.53171,1926.7,1926.6,1.0]
[1617244890748,8.7485,1926.7,1926.6,1.0]
[1617244890951,3.55,1926.7,1926.6,2.2]
[1617244891148,3.55,1926.7,1926.6,6.41]
[1617244891348,3.55,1926.7,1926.6,1.4]
[1617244891349,9.49478,1926.7,1926.6,1.4]
[1617244891549,9.49478,1926.7,1926.6,1.0]
[1617244892574,9.89478,1926.7,1926.6,1.0]
[1617244892975,9.49478,1926.7,1926.6,1.0]
[1617244893375,13.04478,1926.7,1926.6,1.0]
[1617244893776,13.04478,1926.7,1926.6,0.95]
[1617244894376,11.20278,1926.7,1926.6,0.95]
[1617244894796,11.60278,1926.7,1926.6,0.95]
[1617244894996,14.66165726,1926.7,1926.6,0.95]
[1617244895597,11.60278,1926.7,1926.6,0.95]
[1617244896398,11.60278,1926.7,1926.6,0.9]
[1617244897440,9.75958,1926.7,1926.6,0.9]
[1617244898042,9.35958,1926.7,1926.6,0.9]
[1617244898246,3.55,1926.7,1926.6,0.9]
[1617244898442,7.1,1926.7,1926.6,0.9]
[1617244899041,7.1,1926.7,1926.6,1.18]
[1617244899641,7.1,1926.7,1926.6,1.57]
[1617244899844,7.1,1926.7,1926.6,1.18]
[1617244900043,7.1,1926.7,1926.6,1.31]
[1617244900245,14.88155,1926.7,1926.6,0.9]
[1617244900443,13.03435,1926.7,1926.6,0.9]
[1617244901243,4.2528,1926.7,1926.6,1.3]
[1617244902043,4.2528,1926.7,1926.6,0.9]
[1617244902471,4.6428,1926.7,1926.6,0.9]
[1617244902671,12.42443,1926.7,1926.6,0.9]
[1617244902870,12.03443,1926.7,1926.6,0.9]
[1617244903472,10.19103,1926.7,1926.6,0.9]
[1617244903671,13.74103,1926.7,1926.6,0.9]
[1617244906298,12.74103,1926.7,1926.6,0.9]
[1617244906498,10.90263,1926.7,1926.6,0.9]
[1617244908923,14.84263,1926.7,1926.6,0.9]
[1617244909122,14.45263,1926.7,1926.6,0.9]
[1617244909523,12.60483,1926.7,1926.6,0.9]
[1617244909724,12.60483,1926.7,1925.7,0.09406894]
[1617244909925,12.60483,1926.7,1924.8,27.46115852]
[1617244909926,108.98249894,1925.0,1924.8,27.46115852]
[1617244910125,98.60670894,1925.0,1924.9,19.32750687]
[1617244910342,98.60670894,1925.0,1924.9,21.12423446]
[1617244910543,88.23059894,1925.0,1924.9,28.72423446]
[1617244910743,86.26282005,1925.0,1924.9,23.40423446]
[1617244910949,86.26282005,1925.0,1924.9,37.31849487]
[1617244911343,85.26282005,1925.0,1924.9,37.31849487]
[1617244912543,83.42502005,1925.0,1924.9,37.31849487]
[1617244913194,77.56708705,1925.0,1924.9,37.31849487]
[1617244914194,81.11708705,1925.0,1924.9,37.31849487]
[1617244914396,81.11708705,1925.0,1924.9,35.52176728]
[1617244914795,81.11708705,1925.0,1924.9,35.70443448]
[1617244915394,79.27938705,1925.0,1924.9,35.70443448]
[1617244915997,79.07500408,1925.0,1924.9,35.70443448]
[1617244916396,78.07500408,1925.0,1924.9,35.70443448]
[1617244917203,78.07500408,1925.0,1924.9,13.51507761]
[1617244917399,78.07500408,1925.0,1924.9,13.12507761]
[1617244917599,78.07500408,1925.0,1924.9,13.07507761]
[1617244917798,78.07500408,1925.0,1924.9,8.31507761]
[1617244918000,77.45434043,1925.0,1924.9,8.31507761]
[1617244918424,75.61634043,1925.0,1924.9,8.13241041]
[1617244918824,75.61634043,1925.0,1924.9,2.0]
[1617244919426,95.70456727,1925.0,1924.9,2.0]
[1617244920024,95.30456727,1925.0,1924.9,2.0]
[1617244920425,95.71456727,1925.0,1924.9,2.0]
[1617244921253,94.71456727,1925.0,1924.9,2.0]
[1617244921452,92.87716727,1925.0,1924.9,2.0]
[1617244921652,92.46716727,1925.0,1924.9,2.0]
[1617244921853,92.46716727,1925.0,1924.9,1.9]
[1617244922054,92.46716727,1925.0,1924.8,2.074858]
[1617244922253,84.67973727,1925.0,1924.8,2.074858]
[1617244922456,84.67973727,1925.0,1924.8,2.354858]
[1617244923472,85.07973727,1925.0,1924.8,2.354858]
[1617244924074,85.26130042,1925.0,1924.8,2.354858]
[1617244924276,79.74790358,1925.0,1924.8,2.354858]
[1617244924475,81.05700358,1925.0,1924.8,2.354858]
[1617244925078,81.05700358,1925.0,1924.8,2.304858]
[1617244926401,80.05700358,1925.0,1924.8,2.304858]
[1617244927203,80.05700358,1925.0,1924.9,5.01]
[1617244927607,78.21430358,1925.0,1924.9,5.01]
[1617244928205,78.21430358,1925.0,1924.8,2.304858]
[1617244928206,78.21430358,1925.0,1924.8,5.204858]
[1617244928404,78.21430358,1925.0,1924.8,5.484858]
[1617244928826,78.21430358,1925.0,1924.8,5.434858]
[1617244929825,81.76430358,1925.0,1924.8,5.434858]
[1617244930028,81.76430358,1925.0,1924.8,5.384858]
[1617244930627,79.91560358,1925.0,1924.8,5.384858]
[1617244931229,79.91560358,1925.0,1924.8,3.204858]
[1617244931448,78.91560358,1925.0,1924.8,3.204858]
[1617244932248,78.91560358,1925.0,1924.8,2.704858]
[1617244932448,79.31560358,1925.0,1924.8,2.424858]
[1617244932650,0.38,1924.9,1924.8,2.424858]
[1617244933650,0.39,1924.9,1924.8,2.424858]
[1617244935075,10.2559054,1924.9,1924.8,2.424858]
[1617244935277,14.30840224,1924.9,1924.8,2.424858]
[1617244935676,12.19249684,1924.9,1924.8,2.424858]
[1617244935877,10.99249684,1924.9,1924.8,2.424858]
[1617244936078,7.99249684,1924.9,1924.8,2.424858]
[1617244936277,6.99249684,1924.9,1924.8,2.424858]
[1617244936477,3.55,1924.9,1924.8,2.424858]
[1617244936699,2.92269684,1924.9,1924.8,2.424858]
[1617244939724,2.89709684,1924.9,1924.8,2.424858]
[1617244940327,6.44709684,1924.9,1924.8,2.424858]
[1617244941325,5.44709684,1924.9,1924.8,2.424858]
[1617244942581,4.80689684,1924.9,1924.8,2.424858]
[1617244942987,8.48894202,1924.9,1924.8,2.424858]
[1617244943584,7.28894202,1924.9,1924.8,2.424858]
[1617244943785,3.60689684,1924.9,1924.8,2.424858]
[1617244945584,5.31339684,1924.9,1924.8,2.424858]
[1617244946385,4.31339684,1924.9,1924.8,2.424858]
[1617244947202,12.10112684,1924.9,1924.8,2.424858]
[1617244948198,12.51112684,1924.9,1924.8,2.424858]
[1617244948603,11.87412684,1924.9,1924.8,2.424858]
[1617244948801,11.46412684,1924.9,1924.8,2.424858]
[1617244949001,11.87412684,1924.9,1924.8,2.424858]